[Event "*** Titled Tuesday Blitz"]
[Site "Chess.com"]
[Date "2020.05.05"]
[Round "5"]
[White "chenxiaoyuer"]
[Black "Gromes7"]
[Result "1/2-1/2"]
[WhiteElo "2214"]
[BlackElo "2105"]
[TimeControl "180+1"]
[EndTime "10:57:37 PDT"]
[Termination "Game drawn by repetition"]

1. e4 {[%clk 0:03:00.9]} 1... c5 {[%clk 0:02:58.5]} 2. Nf3 {[%clk 0:02:58.3]}
2... a6 {[%clk 0:02:57.9]} 3. g3 {[%clk 0:02:56.4]} 3... b5 {[%clk 0:02:56.9]}
4. Bg2 {[%clk 0:02:43.1]} 4... Bb7 {[%clk 0:02:57.3]} 5. d3 {[%clk 0:02:38.5]}
5... d6 {[%clk 0:02:55]} 6. O-O {[%clk 0:02:37.3]} 6... g6 {[%clk 0:02:54.2]} 7.
Re1 {[%clk 0:02:36.6]} 7... Bg7 {[%clk 0:02:54.2]} 8. c3 {[%clk 0:02:36.8]} 8...
Nf6 {[%clk 0:02:51.1]} 9. Nbd2 {[%clk 0:02:36.2]} 9... O-O {[%clk 0:02:50.7]}
10. d4 {[%clk 0:02:32.4]} 10... Nbd7 {[%clk 0:02:38]} 11. Qe2 {[%clk 0:01:55.8]}
11... e5 {[%clk 0:02:14.8]} 12. dxe5 {[%clk 0:01:18.2]} 12... dxe5 {[%clk
0:02:15.7]} 13. b3 {[%clk 0:00:53.4]} 13... Qc7 {[%clk 0:02:03.2]} 14. Bb2
{[%clk 0:00:49.9]} 14... Rac8 {[%clk 0:01:43.6]} 15. h4 {[%clk 0:00:47.1]} 15...
h5 {[%clk 0:01:29.9]} 16. Ng5 {[%clk 0:00:37.1]} 16... Rfd8 {[%clk 0:01:23.5]}
17. Nf1 {[%clk 0:00:32.8]} 17... c4 {[%clk 0:01:20.2]} 18. b4 {[%clk 0:00:18.4]}
18... Nf8 {[%clk 0:01:10.1]} 19. Rad1 {[%clk 0:00:17.9]} 19... N8h7 {[%clk
0:01:02.5]} 20. f3 {[%clk 0:00:16]} 20... Rxd1 {[%clk 0:00:59.4]} 21. Rxd1
{[%clk 0:00:15.9]} 21... Rd8 {[%clk 0:00:59.7]} 22. Ne3 {[%clk 0:00:15.7]} 22...
Nxg5 {[%clk 0:00:52.9]} 23. hxg5 {[%clk 0:00:15.3]} 23... Nh7 {[%clk 0:00:52.8]}
24. f4 {[%clk 0:00:14]} 24... exf4 {[%clk 0:00:50.1]} 25. Rxd8+ {[%clk
0:00:12.8]} 25... Qxd8 {[%clk 0:00:48]} 26. gxf4 {[%clk 0:00:13.2]} 26... Qc7
{[%clk 0:00:19.6]} 27. e5 {[%clk 0:00:12.7]} 27... a5 {[%clk 0:00:19.4]} 28.
Bxb7 {[%clk 0:00:08.8]} 28... Qxb7 {[%clk 0:00:20.3]} 29. a3 {[%clk 0:00:05.4]}
29... axb4 {[%clk 0:00:19.2]} 30. axb4 {[%clk 0:00:05.5]} 30... Qe4 {[%clk
0:00:18.6]} 31. Qd2 {[%clk 0:00:03.7]} 31... Nxg5 {[%clk 0:00:16.3]} 32. fxg5
{[%clk 0:00:03.5]} 32... Bxe5 {[%clk 0:00:16.1]} 33. Ng2 {[%clk 0:00:03.6]}
33... Qg4 {[%clk 0:00:14.6]} 34. Bc1 {[%clk 0:00:02.9]} 34... Qh3 {[%clk
0:00:14.2]} 35. Qe2 {[%clk 0:00:03]} 35... Qh2+ {[%clk 0:00:13.3]} 36. Kf1
{[%clk 0:00:02.9]} 36... Qh1+ {[%clk 0:00:13.5]} 37. Kf2 {[%clk 0:00:03.3]}
37... Qh2 {[%clk 0:00:12.1]} 38. Qe4 {[%clk 0:00:02.4]} 38... Qg3+ {[%clk
0:00:11.7]} 39. Kf1 {[%clk 0:00:02.4]} 39... Qxc3 {[%clk 0:00:11.4]} 40. Be3
{[%clk 0:00:02.2]} 40... Bg3 {[%clk 0:00:09.1]} 41. Ke2 {[%clk 0:00:02.3]} 41...
Qxb4 {[%clk 0:00:07.9]} 42. Bd4 {[%clk 0:00:02]} 42... Qd6 {[%clk 0:00:07.4]}
43. Qe8+ {[%clk 0:00:02]} 43... Qf8 {[%clk 0:00:07.4]} 44. Qe4 {[%clk
0:00:02.2]} 44... Bd6 {[%clk 0:00:05.7]} 45. Kf3 {[%clk 0:00:02.5]} 45... Qe7
{[%clk 0:00:05.5]} 46. Qa8+ {[%clk 0:00:01.9]} 46... Qf8 {[%clk 0:00:05]} 47.
Qe4 {[%clk 0:00:02.2]} 47... Qe7 {[%clk 0:00:05.2]} 48. Qa8+ {[%clk 0:00:02.3]}
48... Qf8 {[%clk 0:00:05.4]} 49. Qe4 {[%clk 0:00:02.7]} 1/2-1/2

[Event "*** Titled Tuesday Blitz"]
[Site "Chess.com"]
[Date "2020.05.05"]
[Round "5"]
[White "AndriiTop"]
[Black "jonaszmb"]
[Result "0-1"]
[WhiteElo "2312"]
[BlackElo "2492"]
[TimeControl "180+1"]
[EndTime "10:57:40 PDT"]
[Termination "jonaszmb won by resignation"]

1. d4 {[%clk 0:02:59.9]} 1... d5 {[%clk 0:03:00]} 2. Nf3 {[%clk 0:02:52.5]} 2...
Nf6 {[%clk 0:02:59.6]} 3. c4 {[%clk 0:02:53.1]} 3... e6 {[%clk 0:02:59.2]} 4.
Nc3 {[%clk 0:02:49.1]} 4... Nbd7 {[%clk 0:02:58.2]} 5. cxd5 {[%clk 0:02:44.2]}
5... exd5 {[%clk 0:02:57.8]} 6. Bg5 {[%clk 0:02:44.4]} 6... c6 {[%clk
0:02:57.9]} 7. e3 {[%clk 0:02:43]} 7... Qa5 {[%clk 0:02:57.8]} 8. Qc2 {[%clk
0:02:37.6]} 8... Ne4 {[%clk 0:02:56.1]} 9. Bd3 {[%clk 0:02:33.7]} 9... Nxg5
{[%clk 0:02:43.1]} 10. Nxg5 {[%clk 0:02:34.6]} 10... h6 {[%clk 0:02:42.9]} 11.
Nf3 {[%clk 0:02:11.4]} 11... Bd6 {[%clk 0:02:41.2]} 12. O-O {[%clk 0:02:05.1]}
12... O-O {[%clk 0:02:41.2]} 13. a3 {[%clk 0:02:04]} 13... Re8 {[%clk
0:02:35.5]} 14. b4 {[%clk 0:01:52.2]} 14... Qd8 {[%clk 0:02:34.1]} 15. b5 {[%clk
0:01:44.9]} 15... Nf6 {[%clk 0:02:27.9]} 16. bxc6 {[%clk 0:01:44.4]} 16... bxc6
{[%clk 0:02:28.8]} 17. Na4 {[%clk 0:01:44.9]} 17... Bg4 {[%clk 0:02:15.5]} 18.
Qxc6 {[%clk 0:01:17.4]} 18... Rc8 {[%clk 0:02:09.4]} 19. Qa6 {[%clk 0:01:12.7]}
19... Bxf3 {[%clk 0:01:55]} 20. gxf3 {[%clk 0:01:13.6]} 20... Nh5 {[%clk
0:01:03.8]} 21. Bf5 {[%clk 0:00:46]} 21... Rc4 {[%clk 0:00:41.8]} 22. Nb2 {[%clk
0:00:36]} 22... Qf6 {[%clk 0:00:33.4]} 23. Qb5 {[%clk 0:00:28.4]} 23... Rb8
{[%clk 0:00:18.8]} 24. Qxd5 {[%clk 0:00:26.7]} 24... Rxb2 {[%clk 0:00:18.8]} 25.
Be4 {[%clk 0:00:15.4]} 25... Nf4 {[%clk 0:00:06.3]} 26. Qa8+ {[%clk 0:00:13.7]}
26... Rb8 {[%clk 0:00:05.4]} 27. Qxa7 {[%clk 0:00:12.9]} 27... Ne2+ {[%clk
0:00:04.8]} 28. Kh1 {[%clk 0:00:12.1]} 28... Qh4 {[%clk 0:00:05.5]} 29. f4
{[%clk 0:00:12.3]} 29... Nxf4 {[%clk 0:00:04.8]} 30. exf4 {[%clk 0:00:08.3]}
30... Bxf4 {[%clk 0:00:05.7]} 31. Kg2 {[%clk 0:00:08]} 31... Rc3 {[%clk
0:00:04.3]} 32. Rh1 {[%clk 0:00:05.6]} 32... Qh3+ {[%clk 0:00:04.5]} 33. Kg1
{[%clk 0:00:06.1]} 33... Rbc8 {[%clk 0:00:03.4]} 34. Rd1 {[%clk 0:00:03.5]}
34... Rc1 {[%clk 0:00:03.4]} 35. Bf3 {[%clk 0:00:03.1]} 35... Rxd1+ {[%clk
0:00:03.4]} 36. Bxd1 {[%clk 0:00:02.4]} 36... Rc1 {[%clk 0:00:02.3]} 37. Qa4
{[%clk 0:00:03.3]} 37... Qg4+ {[%clk 0:00:01.5]} 38. Kf1 {[%clk 0:00:02.7]}
38... Rxd1+ {[%clk 0:00:02.4]} 39. Qxd1 {[%clk 0:00:01.9]} 39... Qxd1+ {[%clk
0:00:03.3]} 40. Kg2 {[%clk 0:00:02.7]} 40... Qg4+ {[%clk 0:00:04]} 41. Kf1
{[%clk 0:00:02.1]} 41... Qd1+ {[%clk 0:00:04.9]} 42. Kg2 {[%clk 0:00:03]} 42...
Qxd4 {[%clk 0:00:05.8]} 43. Kf1 {[%clk 0:00:03.9]} 43... Qe4 {[%clk 0:00:05.6]}
44. Kg1 {[%clk 0:00:03.9]} 44... Bg5 {[%clk 0:00:04.3]} 45. Kf1 {[%clk
0:00:03.7]} 45... Qxh1+ {[%clk 0:00:04.1]} 46. Ke2 {[%clk 0:00:03.7]} 46... Qa8
{[%clk 0:00:05]} 0-1

[Event "*** Titled Tuesday Blitz"]
[Site "Chess.com"]
[Date "2020.05.05"]
[Round "5"]
[White "ElGasanov"]
[Black "ALeks_Ivlev"]
[Result "0-1"]
[WhiteElo "2720"]
[BlackElo "2584"]
[TimeControl "180+1"]
[EndTime "10:57:42 PDT"]
[Termination "ALeks_Ivlev won on time"]

1. Nf3 {[%clk 0:03:00.9]} 1... Nf6 {[%clk 0:02:59.5]} 2. d4 {[%clk 0:03:01.4]}
2... d5 {[%clk 0:02:58.7]} 3. e3 {[%clk 0:02:59.2]} 3... e6 {[%clk 0:02:54.9]}
4. c4 {[%clk 0:02:58.1]} 4... c6 {[%clk 0:02:50.2]} 5. Nc3 {[%clk 0:02:56.4]}
5... Nbd7 {[%clk 0:02:49.2]} 6. Qc2 {[%clk 0:02:55.4]} 6... Bd6 {[%clk
0:02:48.7]} 7. b3 {[%clk 0:02:54.5]} 7... Qe7 {[%clk 0:02:45.2]} 8. Be2 {[%clk
0:02:53.8]} 8... O-O {[%clk 0:02:42.5]} 9. O-O {[%clk 0:02:53.8]} 9... dxc4
{[%clk 0:02:15.6]} 10. bxc4 {[%clk 0:02:52]} 10... e5 {[%clk 0:02:15.3]} 11. a4
{[%clk 0:02:39.4]} 11... Re8 {[%clk 0:02:14]} 12. a5 {[%clk 0:02:35.8]} 12... e4
{[%clk 0:02:09.5]} 13. Nd2 {[%clk 0:02:34.1]} 13... Nf8 {[%clk 0:02:08.8]} 14.
c5 {[%clk 0:02:21.9]} 14... Bc7 {[%clk 0:02:07.4]} 15. a6 {[%clk 0:02:20.8]}
15... bxa6 {[%clk 0:01:59.2]} 16. Nc4 {[%clk 0:02:11.4]} 16... Nd5 {[%clk
0:01:53.7]} 17. Ba3 {[%clk 0:02:03.5]} 17... Ng6 {[%clk 0:01:36.8]} 18. Nd6
{[%clk 0:02:02]} 18... Bxd6 {[%clk 0:01:30.3]} 19. cxd6 {[%clk 0:02:01.7]} 19...
Qh4 {[%clk 0:01:06]} 20. g3 {[%clk 0:01:50]} 20... Qh6 {[%clk 0:01:01.3]} 21.
Nxe4 {[%clk 0:01:11.7]} 21... Nxe3 {[%clk 0:00:44.2]} 22. fxe3 {[%clk
0:00:42.5]} 22... Qxe3+ {[%clk 0:00:42.3]} 23. Rf2 {[%clk 0:00:41.6]} 23... Qxe4
{[%clk 0:00:38.5]} 24. Qxe4 {[%clk 0:00:42]} 24... Rxe4 {[%clk 0:00:38.1]} 25.
Bf3 {[%clk 0:00:42.7]} 25... Rxd4 {[%clk 0:00:37.8]} 26. Bxc6 {[%clk 0:00:43]}
26... Rb8 {[%clk 0:00:36.6]} 27. Bc5 {[%clk 0:00:41.5]} 27... Rc4 {[%clk
0:00:21]} 28. Bxa7 {[%clk 0:00:39.9]} 28... Rxc6 {[%clk 0:00:16.1]} 29. Bxb8
{[%clk 0:00:39.5]} 29... Be6 {[%clk 0:00:15.8]} 30. Re2 {[%clk 0:00:31.9]} 30...
Nf8 {[%clk 0:00:15]} 31. Ree1 {[%clk 0:00:28.7]} 31... Nd7 {[%clk 0:00:14.9]}
32. Bc7 {[%clk 0:00:27.5]} 32... Rc2 {[%clk 0:00:14.4]} 33. Rec1 {[%clk
0:00:25]} 33... Rd2 {[%clk 0:00:14.1]} 34. Rxa6 {[%clk 0:00:23.7]} 34... h5
{[%clk 0:00:13.6]} 35. Ra5 {[%clk 0:00:18.7]} 35... h4 {[%clk 0:00:12.1]} 36.
gxh4 {[%clk 0:00:18.2]} 36... Kh7 {[%clk 0:00:12.3]} 37. Rg5 {[%clk 0:00:17.3]}
37... Nf6 {[%clk 0:00:11.4]} 38. Rg2 {[%clk 0:00:16.2]} 38... Rd3 {[%clk
0:00:11.5]} 39. Re1 {[%clk 0:00:13.1]} 39... Nh5 {[%clk 0:00:11.4]} 40. Rf2
{[%clk 0:00:09.8]} 40... Kg6 {[%clk 0:00:10.9]} 41. h3 {[%clk 0:00:07.8]} 41...
Nf6 {[%clk 0:00:11]} 42. Rg2+ {[%clk 0:00:06.5]} 42... Kh6 {[%clk 0:00:10.2]}
43. Kh2 {[%clk 0:00:06.3]} 43... Nh5 {[%clk 0:00:10]} 44. Rg5 {[%clk 0:00:04.4]}
44... Rxh3+ {[%clk 0:00:10.2]} 45. Kg2 {[%clk 0:00:04.2]} 45... Rd3 {[%clk
0:00:10.8]} 46. Ree5 {[%clk 0:00:01.1]} 46... Nf4+ {[%clk 0:00:10.8]} 47. Kf2
{[%clk 0:00:01.5]} 47... f6 {[%clk 0:00:11]} 0-1

[Event "*** Titled Tuesday Blitz"]
[Site "Chess.com"]
[Date "2020.05.05"]
[Round "5"]
[White "BillieKimbah"]
[Black "bancsoo"]
[Result "1-0"]
[WhiteElo "2870"]
[BlackElo "2730"]
[TimeControl "180+1"]
[EndTime "10:57:43 PDT"]
[Termination "BillieKimbah won by resignation"]

1. d4 {[%clk 0:03:00.9]} 1... d5 {[%clk 0:02:59.8]} 2. c4 {[%clk 0:03:00.9]}
2... c6 {[%clk 0:02:59.5]} 3. Nf3 {[%clk 0:03:00.7]} 3... Nf6 {[%clk 0:02:59.5]}
4. Nc3 {[%clk 0:03:00.8]} 4... dxc4 {[%clk 0:02:55.4]} 5. e4 {[%clk 0:03:00.7]}
5... b5 {[%clk 0:02:53]} 6. Be2 {[%clk 0:03:00.6]} 6... e6 {[%clk 0:02:52.7]} 7.
O-O {[%clk 0:02:59.6]} 7... b4 {[%clk 0:02:45.5]} 8. e5 {[%clk 0:02:53.3]} 8...
bxc3 {[%clk 0:02:44.4]} 9. exf6 {[%clk 0:02:53]} 9... Qxf6 {[%clk 0:02:39.4]}
10. bxc3 {[%clk 0:02:52.5]} 10... Nd7 {[%clk 0:02:35.1]} 11. Bxc4 {[%clk
0:02:22.8]} 11... Bd6 {[%clk 0:02:23.4]} 12. Bd3 {[%clk 0:02:12.6]} 12... Qd8
{[%clk 0:02:05]} 13. Qe2 {[%clk 0:02:08.4]} 13... O-O {[%clk 0:02:02]} 14. Bg5
{[%clk 0:01:58.4]} 14... Qc7 {[%clk 0:01:58.3]} 15. Qe4 {[%clk 0:01:57.5]} 15...
g6 {[%clk 0:01:56.8]} 16. Qh4 {[%clk 0:01:57.1]} 16... Re8 {[%clk 0:01:51.1]}
17. Rfe1 {[%clk 0:01:50.9]} 17... Bb7 {[%clk 0:01:46.8]} 18. Be4 {[%clk
0:01:03.5]} 18... c5 {[%clk 0:01:43.8]} 19. Rad1 {[%clk 0:01:03]} 19... Bd5
{[%clk 0:01:22.9]} 20. Bxd5 {[%clk 0:01:01.2]} 20... exd5 {[%clk 0:01:23]} 21.
h3 {[%clk 0:00:59.7]} 21... c4 {[%clk 0:01:05.1]} 22. Bh6 {[%clk 0:00:58.3]}
22... f6 {[%clk 0:01:01.5]} 23. Qg4 {[%clk 0:00:57.5]} 23... Nb6 {[%clk
0:00:52.5]} 24. Nd2 {[%clk 0:00:49.7]} 24... Qd7 {[%clk 0:00:46.6]} 25. Qf3
{[%clk 0:00:49.1]} 25... Qf5 {[%clk 0:00:44.4]} 26. Qxf5 {[%clk 0:00:48.6]}
26... gxf5 {[%clk 0:00:44.6]} 27. Nf1 {[%clk 0:00:48.5]} 27... f4 {[%clk
0:00:43.4]} 28. g3 {[%clk 0:00:48.2]} 28... Na4 {[%clk 0:00:39.1]} 29. Rxe8+
{[%clk 0:00:47.8]} 29... Rxe8 {[%clk 0:00:38.8]} 30. Rc1 {[%clk 0:00:48.5]}
30... Re2 {[%clk 0:00:38.5]} 31. Bxf4 {[%clk 0:00:47.4]} 31... Bxf4 {[%clk
0:00:38.3]} 32. gxf4 {[%clk 0:00:48.3]} 32... Rxa2 {[%clk 0:00:34.1]} 33. Ne3
{[%clk 0:00:48.5]} 33... Nb6 {[%clk 0:00:34.8]} 34. f5 {[%clk 0:00:46.5]} 34...
Kf7 {[%clk 0:00:34.5]} 35. Kg2 {[%clk 0:00:46.4]} 35... Ke7 {[%clk 0:00:30.3]}
36. Kf3 {[%clk 0:00:46.4]} 36... Kd6 {[%clk 0:00:30.5]} 37. h4 {[%clk
0:00:43.7]} 37... h5 {[%clk 0:00:29.6]} 38. Ng2 {[%clk 0:00:42.7]} 38... Ra3
{[%clk 0:00:29.4]} 39. Nf4 {[%clk 0:00:37.7]} 39... Na4 {[%clk 0:00:29.4]} 40.
Nxh5 {[%clk 0:00:31.9]} 40... Nxc3 {[%clk 0:00:29.7]} 41. Kg2 {[%clk 0:00:32.1]}
41... Ne4 {[%clk 0:00:30.4]} 42. Ng3 {[%clk 0:00:31.6]} 42... Nxg3 {[%clk
0:00:14.5]} 43. fxg3 {[%clk 0:00:32.5]} 43... Rd3 {[%clk 0:00:13.3]} 44. h5
{[%clk 0:00:31.7]} 44... Ke7 {[%clk 0:00:13.9]} 45. Ra1 {[%clk 0:00:30.8]} 45...
Rxd4 {[%clk 0:00:14.4]} 46. Rxa7+ {[%clk 0:00:30.9]} 46... Kf8 {[%clk
0:00:15.2]} 47. h6 {[%clk 0:00:30.8]} 47... Kg8 {[%clk 0:00:14.7]} 48. Rg7+
{[%clk 0:00:28.5]} 48... Kh8 {[%clk 0:00:14.8]} 49. Rc7 {[%clk 0:00:28.4]} 49...
Rd3 {[%clk 0:00:15]} 50. g4 {[%clk 0:00:28.2]} 50... c3 {[%clk 0:00:14.6]} 51.
g5 {[%clk 0:00:28.4]} 51... fxg5 {[%clk 0:00:14.9]} 52. f6 {[%clk 0:00:28.8]}
52... Rd2+ {[%clk 0:00:11]} 53. Kg3 {[%clk 0:00:28.2]} 53... Rd3+ {[%clk
0:00:05.3]} 54. Kg4 {[%clk 0:00:28]} 54... Rd1 {[%clk 0:00:04.2]} 55. f7 {[%clk
0:00:26.8]} 55... Rg1+ {[%clk 0:00:03.7]} 56. Kh5 {[%clk 0:00:24.7]} 1-0

[Event "*** Titled Tuesday Blitz"]
[Site "Chess.com"]
[Date "2020.05.05"]
[Round "5"]
[White "SHIVACalypso"]
[Black "MartinMatthiesen"]
[Result "1-0"]
[WhiteElo "2304"]
[BlackElo "2461"]
[TimeControl "180+1"]
[EndTime "10:57:43 PDT"]
[Termination "SHIVACalypso won on time"]

1. Nf3 {[%clk 0:03:00.9]} 1... d5 {[%clk 0:02:59]} 2. c4 {[%clk 0:03:01]} 2...
e6 {[%clk 0:02:57.2]} 3. g3 {[%clk 0:03:00.4]} 3... Nf6 {[%clk 0:02:56.4]} 4.
Bg2 {[%clk 0:03:00.6]} 4... Be7 {[%clk 0:02:55.9]} 5. O-O {[%clk 0:03:00.9]}
5... O-O {[%clk 0:02:55.9]} 6. d4 {[%clk 0:03:00.5]} 6... dxc4 {[%clk
0:02:44.3]} 7. Qc2 {[%clk 0:02:59.5]} 7... a6 {[%clk 0:02:43.5]} 8. a4 {[%clk
0:02:56.3]} 8... Bd7 {[%clk 0:02:28]} 9. Ne5 {[%clk 0:02:53.2]} 9... Bc6 {[%clk
0:02:19.1]} 10. Nxc6 {[%clk 0:02:51.4]} 10... Nxc6 {[%clk 0:02:20]} 11. e3
{[%clk 0:02:51.6]} 11... Na5 {[%clk 0:02:11.2]} 12. Nd2 {[%clk 0:02:49]} 12...
c5 {[%clk 0:02:02.2]} 13. dxc5 {[%clk 0:02:48.1]} 13... Qc7 {[%clk 0:01:59.8]}
14. b4 {[%clk 0:02:29.9]} 14... cxb3 {[%clk 0:01:57.8]} 15. Nxb3 {[%clk
0:02:29.5]} 15... Nxb3 {[%clk 0:01:48.8]} 16. Qxb3 {[%clk 0:02:30.4]} 16... Rab8
{[%clk 0:01:19.9]} 17. Ba3 {[%clk 0:02:09.7]} 17... Bxc5 {[%clk 0:01:05.9]} 18.
Rac1 {[%clk 0:02:05.5]} 18... Nd7 {[%clk 0:01:04.6]} 19. Rfd1 {[%clk 0:01:56.1]}
19... b6 {[%clk 0:00:58.7]} 20. Qd3 {[%clk 0:01:41.9]} 20... a5 {[%clk
0:00:38.2]} 21. Qxd7 {[%clk 0:00:59.5]} 21... Qxd7 {[%clk 0:00:37.8]} 22. Rxd7
{[%clk 0:01:00.4]} 22... Bxa3 {[%clk 0:00:38.3]} 23. Rcc7 {[%clk 0:01:00.2]}
23... Rbc8 {[%clk 0:00:32.1]} 24. Bc6 {[%clk 0:00:50.8]} 24... Rxc7 {[%clk
0:00:29]} 25. Rxc7 {[%clk 0:00:51.7]} 25... g6 {[%clk 0:00:24.4]} 26. Kg2 {[%clk
0:00:47]} 26... Rd8 {[%clk 0:00:21.9]} 27. Rb7 {[%clk 0:00:42.4]} 27... Bc5
{[%clk 0:00:20.3]} 28. Kf3 {[%clk 0:00:40.9]} 28... h5 {[%clk 0:00:18.5]} 29. h3
{[%clk 0:00:39.5]} 29... Kg7 {[%clk 0:00:18.1]} 30. Bb5 {[%clk 0:00:38.6]} 30...
Kf6 {[%clk 0:00:17.4]} 31. Ke2 {[%clk 0:00:32.6]} 31... Bb4 {[%clk 0:00:16]} 32.
Kf3 {[%clk 0:00:31.6]} 32... Bc5 {[%clk 0:00:15.1]} 33. Ke2 {[%clk 0:00:31]}
33... g5 {[%clk 0:00:15.2]} 34. Kf3 {[%clk 0:00:30.3]} 34... Kg6 {[%clk
0:00:13.1]} 35. Rd7 {[%clk 0:00:25.7]} 35... Rc8 {[%clk 0:00:12.2]} 36. Rb7
{[%clk 0:00:25.3]} 36... f5 {[%clk 0:00:11.3]} 37. Bc4 {[%clk 0:00:20.2]} 37...
Kf6 {[%clk 0:00:10.8]} 38. Bb5 {[%clk 0:00:18.8]} 38... g4+ {[%clk 0:00:10.8]}
39. hxg4 {[%clk 0:00:18.2]} 39... hxg4+ {[%clk 0:00:10.5]} 40. Ke2 {[%clk
0:00:18.6]} 40... Rd8 {[%clk 0:00:10.6]} 41. Rd7 {[%clk 0:00:17.9]} 41... Rh8
{[%clk 0:00:10.4]} 42. Rc7 {[%clk 0:00:13.8]} 42... Rh1 {[%clk 0:00:09.7]} 43.
Rc6 {[%clk 0:00:12.8]} 43... Ke7 {[%clk 0:00:07.6]} 44. Bc4 {[%clk 0:00:12.1]}
44... Rh6 {[%clk 0:00:05.9]} 45. Kd3 {[%clk 0:00:10]} 45... Rh2 {[%clk
0:00:03.4]} 46. Ke2 {[%clk 0:00:09.7]} 46... Bd6 {[%clk 0:00:01.2]} 47. Bb5
{[%clk 0:00:08.9]} 1-0

[Event "*** Titled Tuesday Blitz"]
[Site "Chess.com"]
[Date "2020.05.05"]
[Round "5"]
[White "Stewie_89"]
[Black "Nakachuk"]
[Result "1-0"]
[WhiteElo "2638"]
[BlackElo "2860"]
[TimeControl "180+1"]
[EndTime "10:57:44 PDT"]
[Termination "Stewie_89 won by checkmate"]

1. e4 {[%clk 0:03:00.9]} 1... c5 {[%clk 0:03:00.1]} 2. Nf3 {[%clk 0:03:00.3]}
2... e6 {[%clk 0:03:00.2]} 3. b3 {[%clk 0:02:59.8]} 3... Nf6 {[%clk 0:02:59.2]}
4. e5 {[%clk 0:02:59.5]} 4... Nd5 {[%clk 0:02:58.8]} 5. Bb2 {[%clk 0:02:59.6]}
5... Nc6 {[%clk 0:02:57.6]} 6. g3 {[%clk 0:02:58.7]} 6... Be7 {[%clk 0:02:57.6]}
7. Bg2 {[%clk 0:02:57.1]} 7... O-O {[%clk 0:02:57.8]} 8. O-O {[%clk 0:02:55.9]}
8... f6 {[%clk 0:02:57.3]} 9. c4 {[%clk 0:02:09.9]} 9... Nc7 {[%clk 0:02:57.2]}
10. d4 {[%clk 0:02:07.4]} 10... cxd4 {[%clk 0:02:56.8]} 11. exf6 {[%clk
0:02:07.1]} 11... Bxf6 {[%clk 0:02:57.7]} 12. Nxd4 {[%clk 0:02:06.5]} 12... d5
{[%clk 0:02:54.7]} 13. cxd5 {[%clk 0:01:59.7]} 13... exd5 {[%clk 0:02:52.6]} 14.
Na3 {[%clk 0:01:55.8]} 14... Nxd4 {[%clk 0:02:37.2]} 15. Bxd4 {[%clk 0:01:55.4]}
15... Bf5 {[%clk 0:02:37.1]} 16. Rc1 {[%clk 0:01:40.9]} 16... Kh8 {[%clk
0:02:07.2]} 17. Bxf6 {[%clk 0:01:24.9]} 17... Rxf6 {[%clk 0:02:08.1]} 18. Nc2
{[%clk 0:01:24.8]} 18... Be4 {[%clk 0:02:04.3]} 19. Bxe4 {[%clk 0:01:03.3]}
19... dxe4 {[%clk 0:02:05.2]} 20. Qxd8+ {[%clk 0:01:03.7]} 20... Rxd8 {[%clk
0:02:06]} 21. Ne3 {[%clk 0:01:03.5]} 21... Ne6 {[%clk 0:02:04.3]} 22. Rfd1
{[%clk 0:00:59.9]} 22... Rdf8 {[%clk 0:01:47.7]} 23. Rc2 {[%clk 0:00:54]} 23...
Ng5 {[%clk 0:01:42.4]} 24. Kg2 {[%clk 0:00:53.1]} 24... Nf3 {[%clk 0:01:41.7]}
25. Rc7 {[%clk 0:00:47.6]} 25... Ne5 {[%clk 0:01:41.2]} 26. Rd2 {[%clk
0:00:40.1]} 26... Nd3 {[%clk 0:01:41.1]} 27. Ng4 {[%clk 0:00:39.7]} 27... Rg6
{[%clk 0:01:38.2]} 28. Ne3 {[%clk 0:00:39.5]} 28... Ne1+ {[%clk 0:01:31.9]} 29.
Kf1 {[%clk 0:00:38.8]} 29... Nf3 {[%clk 0:01:32.5]} 30. Rdd7 {[%clk 0:00:38.6]}
30... Nxh2+ {[%clk 0:01:32.6]} 31. Ke2 {[%clk 0:00:35.2]} 31... Nf3 {[%clk
0:01:28.8]} 32. Rxb7 {[%clk 0:00:34.1]} 32... h5 {[%clk 0:01:28]} 33. Rxa7
{[%clk 0:00:33.6]} 33... Ne5 {[%clk 0:01:14.2]} 34. Re7 {[%clk 0:00:24.4]} 34...
Nd3 {[%clk 0:01:08.5]} 35. Rxe4 {[%clk 0:00:24.7]} 35... Nxf2 {[%clk 0:01:06.5]}
36. Rh4 {[%clk 0:00:24.7]} 36... Rxg3 {[%clk 0:01:02.1]} 37. Rxh5+ {[%clk
0:00:24]} 37... Kg8 {[%clk 0:01:02.2]} 38. Nf5 {[%clk 0:00:23.9]} 38... Rg2
{[%clk 0:01:01.2]} 39. Kf3 {[%clk 0:00:22.4]} 39... Rg4 {[%clk 0:00:50.3]} 40.
Kxf2 {[%clk 0:00:18.4]} 40... Rf4+ {[%clk 0:00:50.4]} 41. Kg3 {[%clk 0:00:19]}
41... R4xf5 {[%clk 0:00:51]} 42. Rxf5 {[%clk 0:00:18.8]} 42... Rxf5 {[%clk
0:00:51.9]} 43. a4 {[%clk 0:00:19]} 43... Rf1 {[%clk 0:00:46.7]} 44. b4 {[%clk
0:00:18.9]} 44... Kh7 {[%clk 0:00:46.1]} 45. b5 {[%clk 0:00:19.2]} 45... Rb1
{[%clk 0:00:45]} 46. Ra6 {[%clk 0:00:17.6]} 46... Rb4 {[%clk 0:00:41.6]} 47. b6
{[%clk 0:00:17.2]} 47... Kh6 {[%clk 0:00:37.3]} 48. a5 {[%clk 0:00:16.2]} 48...
Kh5 {[%clk 0:00:36.6]} 49. Ra8 {[%clk 0:00:15.9]} 49... g5 {[%clk 0:00:37.1]}
50. Rh8+ {[%clk 0:00:14.6]} 50... Kg6 {[%clk 0:00:37.4]} 51. a6 {[%clk
0:00:14.9]} 51... Rb3+ {[%clk 0:00:37.9]} 52. Kg2 {[%clk 0:00:14.5]} 52... Rb2+
{[%clk 0:00:37.9]} 53. Kf3 {[%clk 0:00:14.6]} 53... Rb3+ {[%clk 0:00:38.4]} 54.
Ke4 {[%clk 0:00:14.8]} 54... Rb4+ {[%clk 0:00:38.9]} 55. Kd3 {[%clk 0:00:15.1]}
55... Rb3+ {[%clk 0:00:39]} 56. Kc4 {[%clk 0:00:14.9]} 56... Rxb6 {[%clk
0:00:39.1]} 57. a7 {[%clk 0:00:15.3]} 57... Ra6 {[%clk 0:00:39.5]} 58. a8=Q
{[%clk 0:00:15.7]} 58... Rxa8 {[%clk 0:00:40.4]} 59. Rxa8 {[%clk 0:00:15.7]}
59... Kf5 {[%clk 0:00:41.3]} 60. Kd3 {[%clk 0:00:15.9]} 60... Kf4 {[%clk
0:00:41.2]} 61. Ke2 {[%clk 0:00:16.1]} 61... Kg3 {[%clk 0:00:42.1]} 62. Kf1
{[%clk 0:00:16.1]} 62... Kh2 {[%clk 0:00:39.7]} 63. Rg8 {[%clk 0:00:16.1]} 63...
Kh3 {[%clk 0:00:39.5]} 64. Rxg5 {[%clk 0:00:16.4]} 64... Kh4 {[%clk 0:00:40.4]}
65. Rg8 {[%clk 0:00:16.9]} 65... Kh3 {[%clk 0:00:40.8]} 66. Kf2 {[%clk
0:00:17.2]} 66... Kh4 {[%clk 0:00:41.7]} 67. Kf3 {[%clk 0:00:17.5]} 67... Kh5
{[%clk 0:00:42.6]} 68. Kf4 {[%clk 0:00:17.9]} 68... Kh6 {[%clk 0:00:43.5]} 69.
Kf5 {[%clk 0:00:18.2]} 69... Kh7 {[%clk 0:00:44.4]} 70. Rg1 {[%clk 0:00:18]}
70... Kh6 {[%clk 0:00:45.3]} 71. Rg2 {[%clk 0:00:18.2]} 71... Kh5 {[%clk
0:00:46.2]} 72. Rh2# {[%clk 0:00:17.1]} 1-0